[Event "GER-ch Youth-U12 2024"]
[Site "Willingen"]
[Date "2024.05.20"]
[Round "3"]
[White "Balashvili, Amiran"]
[Black "Grabowski, Joshua"]
[Result "1/2-1/2"]
[ECO "C00"]
[WhiteElo "1682"]
[BlackElo "1532"]
[Annotator "NA"]
[PlyCount "110"]
[EventDate "2022.06.05"]
[EventType "swiss"]
[EventRounds "9"]
[EventCountry "GER"]
[SourceTitle "playchess.com"]
[Source "ChessBase"]
[SourceQuality "1"]
[TimeControl "40/4500+30:900+30"]

1. e4 {[%emt 0:00:00]} e6 {[%emt 0:00:00]} 2. c4 {[%emt 0:00:00]} d5 {[%emt 0:00:00]} 3. cxd5 {[%emt 0:00:00]} exd5 {[%emt 0:00:00]} 4. exd5 {[%emt 0:00:00]} Nf6 {[%emt 0:00:00]} 5. Nc3 {[%emt 0:00:00]} Nxd5 {[%emt 0:00:00]} 6. Nf3 {[%emt 0:00:00]} Nc6 {[%emt 0:00:00]} 7. Bc4 {[%emt 0:00:00]} Be6 {[%emt 0:00:00]} 8. Bb5 {[%emt 0:00:00]} Bd6 {[%emt 0:05:17]} 9. Nd4 {[%emt 0:12:38]} Bd7 {[%emt 0:06:17]} 10. Nxc6 {[%emt 0:01:20]} Bxc6 {[%emt 0:03:15]} 11. Bxc6+ {[%emt 0:02:18]} bxc6 {[%emt 0:01:20]} 12. O-O {[%emt 0:00:44]} O-O {[%emt 0:00:38]} 13. Qa4 {[%emt 0:03:48]} Qf6 {[%emt 0:04:07]} 14. g3 {[%emt 0:04:06]} Nxc3 {[%emt 0:04:44]} 15. bxc3 {[%emt 0:00:30]} Qf3 {[%emt 0:02:59]} 16. Ba3 {[%emt 0:02:24]} Rfe8 {[%emt 0:01:55]} 17. Rae1 {[%emt 0:02:16]} Qd5 {[%emt 0:08:05]} 18. Bxd6 {[%emt 0:03:39]} cxd6 {[%emt 0:01:02]} 19. d4 {[%emt 0:00:23]} Re6 {[%emt 0:07:50]} 20. Qa6 {[%emt 0:10:41]} Qb5 {[%emt 0:02:01]} 21. Qxb5 {[%emt 0:02:18]} cxb5 {[%emt 0:00:44]} 22. d5 {[%emt 0:03:08]} Rxe1 {[%emt 0:01:29]} 23. Rxe1 {[%emt 0:00:03]} Kf8 {[%emt 0:00:21]} 24. Kf1 {[%emt 0:00:54]} Rc8 {[%emt 0:00:55]} 25. Re3 {[%emt 0:00:04]} Rc5 {[%emt 0:00:33]} 26. Rd3 {[%emt 0:00:06]} Ke7 {[%emt 0:00:35]} 27. Ke2 {[%emt 0:00:10]} a5 {[%emt 0:00:36]} 28. Kd2 {[%emt 0:02:29]} Rc4 {[%emt 0:00:42]} 29. Kc2 {[%emt 0:01:19]} Kd7 {[%emt 0:02:09]} 30. Kb2 {[%emt 0:02:49]} Ke7 {[%emt 0:01:01]} 31. h3 {[%emt 0:02:00]} Kf6 {[%emt 0:00:30]} 32. Rf3+ {[%emt 0:00:48]} Ke7 {[%emt 0:00:35]} 33. Kb3 {[%emt 0:01:05]} a4+ {[%emt 0:00:54]} 34. Kb2 {[%emt 0:00:07]} Rc5 {[%emt 0:00:23]} 35. Rd3 {[%emt 0:00:20]} f5 {[%emt 0:00:49]} 36. Ka3 {[%emt 0:00:17]} Rc4 {[%emt 0:00:29]} 37. Re3+ {[%emt 0:02:52]} Kd7 {[%emt 0:00:29]} 38. Kb2 {[%emt 0:02:02]} Re4 {[%emt 0:01:57]} 39. Kc2 {[%emt 0:09:06]} Ke7 {[%emt 0:00:35]} 40. Kd3 {[%emt 0:00:34]} Rxe3+ {[%emt 0:03:32]} 41. Kxe3 {[%emt 0:16:10]} Kf6 {[%emt 0:15:20]} 42. Kd4 {[%emt 0:00:35]} g5 {[%emt 0:03:11]} 43. f4 {[%emt 0:02:58]} gxf4 {[%emt 0:00:16]} 44. gxf4 {[%emt 0:00:04]} Ke7 {[%emt 0:00:36]} 45. a3 {[%emt 0:01:48]} Kd7 {[%emt 0:01:20]} 46. c4 {[%emt 0:00:31]} Kc7 {[%emt 0:01:24]} 47. Kd3 {[%emt 0:04:36]} Kb6 {[%emt 0:02:11]} 48. Kd4 {[%emt 0:00:00]} bxc4 {[%emt 0:00:00]} 49. Kxc4 {[%emt 0:00:00]} Ka5 {[%emt 0:00:00]} 50. h4 {[%emt 0:00:00]} h5 {[%emt 0:00:00]} 51. Kc3 {[%emt 0:00:00]} Kb5 {[%emt 0:00:00]} 52. Kd4 {[%emt 0:00:00]} Kb6 {[%emt 0:00:00]} 53. Kc4 {[%emt 0:00:00]} Ka5 {[%emt 0:00:00]} 54. Kc3 {[%emt 0:01:28]} Kb5 {[%emt 0:00:00]} 55. Kd4 {[%emt 0:00:00]} Kb6 {[%emt 0:00:00]} 1/2-1/2

[Event "GER-ch Youth-U12 2024"]
[Site "Willingen"]
[Date "2024.05.20"]
[Round "3"]
[White "Heitmann, Erik"]
[Black "Fels, Mattis"]
[Result "0-1"]
[ECO "A85"]
[WhiteElo "1644"]
[BlackElo "1759"]
[Annotator "NA"]
[PlyCount "70"]
[EventDate "2022.06.05"]
[EventType "swiss"]
[EventRounds "9"]
[EventCountry "GER"]
[SourceTitle "playchess.com"]
[Source "ChessBase"]
[SourceQuality "1"]
[TimeControl "40/4500+30:900+30"]

1. d4 {[%emt 0:00:00]} d5 {[%emt 0:00:00]} 2. c4 {[%emt 0:00:00]} e6 {[%emt 0:00:00]} 3. Nc3 {[%emt 0:00:00]} c6 {[%emt 0:00:00]} 4. e3 {[%emt 0:00:00]} Bd6 {[%emt 0:00:00]} 5. Nf3 {[%emt 0:00:00]} f5 {[%emt 0:00:00]} 6. Bd3 {[%emt 0:00:00]} Nf6 {[%emt 0:00:00]} 7. O-O {[%emt 0:00:00]} O-O {[%emt 0:00:00]} 8. b3 {[%emt 0:00:00]} Bd7 {[%emt 0:00:00]} 9. h3 {[%emt 0:00:00]} Be8 {[%emt 0:00:00]} 10. Qc2 {[%emt 0:00:00]} Nbd7 {[%emt 0:00:00]} 11. Bd2 {[%emt 0:00:20]} Ne4 {[%emt 0:00:00]} 12. c5 {[%emt 0:08:19]} Bc7 {[%emt 0:08:20]} 13. b4 {[%emt 0:01:09]} Bh5 {[%emt 0:00:57]} 14. Ne1 {[%emt 0:01:03]} e5 {[%emt 0:03:48]} 15. Bxe4 {[%emt 0:02:45]} fxe4 {[%emt 0:01:05]} 16. Qb3 {[%emt 0:03:04]} Qh4 {[%emt 0:09:59]} 17. Nc2 {[%emt 0:02:08]} Rf7 {[%emt 0:02:24]} 18. Nxd5 {[%emt 0:05:03]} cxd5 {[%emt 0:03:32]} 19. Qxd5 {[%emt 0:00:34]} Raf8 {[%emt 0:03:34]} 20. Be1 {[%emt 0:05:15]} Be2 {[%emt 0:00:47]} 21. f4 {[%emt 0:01:25]} Qh5 {[%emt 0:06:02]} 22. Rf2 {[%emt 0:03:45]} exf4 {[%emt 0:07:42]} 23. Qxb7 {[%emt 0:03:20]} Nf6 {[%emt 0:04:24]} 24. Qc6 {[%emt 0:02:29]} Nd5 {[%emt 0:01:32]} 25. Bd2 {[%emt 0:33:34]} fxe3 {[%emt 0:06:56]} 26. Rxf7 {[%emt 0:01:10]} Qxf7 {[%emt 0:00:29]} 27. Nxe3 {[%emt 0:05:12]} Qf2+ {[%emt 0:01:09]} 28. Kh1 {[%emt 0:00:44]} Nxe3 {[%emt 0:00:19]} 29. Qe6+ {[%emt 0:00:25]} Kh8 {[%emt 0:00:37]} 30. Bxe3 {[%emt 0:00:17]} Qxe3 {[%emt 0:00:28]} 31. Qe7 {[%emt 0:00:27]} Qf4 {[%emt 0:00:22]} 32. g3 {[%emt 0:01:02]} Bf3+ {[%emt 0:00:22]} 33. Kg1 {[%emt 0:00:25]} Qxg3+ {[%emt 0:00:06]} 34. Kf1 {[%emt 0:00:14]} Qg2+ {[%emt 0:00:07]} 35. Ke1 {[%emt 0:08:20]} Bg3# {[%emt 0:00:41]} 0-1

[Event "GER-ch Youth-U12 2024"]
[Site "Willingen"]
[Date "2024.05.20"]
[Round "3"]
[White "Doeding, Alexander"]
[Black "Hoppe, Arthur"]
[Result "0-1"]
[ECO "B06"]
[WhiteElo "1633"]
[BlackElo "1859"]
[Annotator "NA"]
[PlyCount "84"]
[EventDate "2022.06.05"]
[EventType "swiss"]
[EventRounds "9"]
[EventCountry "GER"]
[SourceTitle "playchess.com"]
[Source "ChessBase"]
[SourceQuality "1"]
[TimeControl "40/4500+30:900+30"]

1. e4 {[%emt 0:00:00]} g6 {[%emt 0:00:00]} 2. d4 {[%emt 0:00:00]} Bg7 {[%emt 0:00:00]} 3. Nc3 {[%emt 0:00:00]} d6 {[%emt 0:00:00]} 4. f4 {[%emt 0:00:00]} a6 {[%emt 0:00:00]} 5. Nf3 {[%emt 0:00:00]} b5 {[%emt 0:00:00]} 6. a3 {[%emt 0:00:00]} Bb7 {[%emt 0:00:00]} 7. Bd3 {[%emt 0:00:00]} c5 {[%emt 0:00:00]} 8. dxc5 {[%emt 0:00:00]} dxc5 {[%emt 0:00:00]} 9. e5 {[%emt 0:00:00]} Nh6 {[%emt 0:00:00]} 10. O-O {[%emt 0:00:00]} O-O {[%emt 0:05:23]} 11. Qe1 {[%emt 0:04:08]} c4 {[%emt 0:19:29]} 12. Be4 {[%emt 0:01:10]} Bxe4 {[%emt 0:04:58]} 13. Qxe4 {[%emt 0:01:36]} Nd7 {[%emt 0:00:16]} 14. Rd1 {[%emt 0:04:39]} Qc8 {[%emt 0:10:33]} 15. Be3 {[%emt 0:08:20]} Nc5 {[%emt 0:03:48]} 16. Qd4 {[%emt 0:03:16]} Ne6 {[%emt 0:00:24]} 17. Qd7 {[%emt 0:00:39]} Nf5 {[%emt 0:01:38]} 18. Qxc8 {[%emt 0:01:30]} Raxc8 {[%emt 0:00:03]} 19. Kf2 {[%emt 0:00:51]} f6 {[%emt 0:01:59]} 20. Ke2 {[%emt 0:07:23]} Bh6 {[%emt 0:08:05]} 21. g3 {[%emt 0:04:03]} Nxe3 {[%emt 0:00:02]} 22. Kxe3 {[%emt 0:00:16]} fxe5 {[%emt 0:00:12]} 23. Nxe5 {[%emt 0:02:04]} g5 {[%emt 0:00:43]} 24. fxg5 {[%emt 0:04:25]} Bxg5+ {[%emt 0:00:54]} 25. Ke2 {[%emt 0:01:21]} Rf5 {[%emt 0:00:05]} 26. Nf3 {[%emt 0:01:49]} Rcf8 {[%emt 0:01:26]} 27. Rf1 {[%emt 0:01:00]} Rxf3 {[%emt 0:00:01]} 28. Rxf3 {[%emt 0:07:26]} Nd4+ {[%emt 0:00:04]} 29. Kf1 {[%emt 0:00:19]} Rxf3+ {[%emt 0:00:29]} 30. Kg2 {[%emt 0:00:45]} Rf5 {[%emt 0:01:07]} 31. Ne4 {[%emt 0:01:04]} Bh6 {[%emt 0:00:27]} 32. c3 {[%emt 0:01:32]} Nc2 {[%emt 0:00:02]} 33. Rg1 {[%emt 0:01:20]} Ne3+ {[%emt 0:00:45]} 34. Kh1 {[%emt 0:00:08]} Rd5 {[%emt 0:01:43]} 35. g4 {[%emt 0:03:34]} Rd1 {[%emt 0:00:12]} 36. Nf2 {[%emt 0:00:17]} Rd2 {[%emt 0:00:18]} 37. Ne4 {[%emt 0:01:01]} Rxb2 {[%emt 0:00:13]} 38. Re1 {[%emt 0:00:34]} Bf4 {[%emt 0:00:17]} 39. Ng3 {[%emt 0:00:33]} Rd2 {[%emt 0:00:55]} 40. Ne2 {[%emt 0:00:37]} Nc2 {[%emt 0:00:49]} 41. Rf1 {[%emt 0:15:33]} Bd6 {[%emt 0:15:40]} 42. g5 {[%emt 0:00:32]} Rxe2 {[%emt 0:00:03]} 0-1

[Event "GER-ch Youth-U12 2024"]
[Site "Willingen"]
[Date "2024.05.20"]
[Round "3"]
[White "Hagn, Tobias"]
[Black "Meijers, Janis"]
[Result "0-1"]
[ECO "B10"]
[WhiteElo "1631"]
[BlackElo "1787"]
[Annotator "NA"]
[PlyCount "114"]
[EventDate "2022.06.05"]
[EventType "swiss"]
[EventRounds "9"]
[EventCountry "GER"]
[SourceTitle "playchess.com"]
[Source "ChessBase"]
[SourceQuality "1"]
[TimeControl "40/4500+30:900+30"]

1. e4 {[%emt 0:00:00]} c6 {[%emt 0:00:00]} 2. c4 {[%emt 0:00:00]} d5 {[%emt 0:00:00]} 3. exd5 {[%emt 0:00:00]} cxd5 {[%emt 0:00:00]} 4. cxd5 {[%emt 0:00:00]} Nf6 {[%emt 0:00:00]} 5. Qa4+ {[%emt 0:00:00]} Bd7 {[%emt 0:00:00]} 6. Qb3 {[%emt 0:00:00]} Qc7 {[%emt 0:00:00]} 7. Nc3 {[%emt 0:00:00]} e5 {[%emt 0:00:00]} 8. dxe6 {[%emt 0:00:00]} Bxe6 {[%emt 0:00:00]} 9. Qd1 {[%emt 0:00:00]} Nc6 {[%emt 0:02:50]} 10. Nf3 {[%emt 0:00:00]} Bc5 {[%emt 0:02:21]} 11. Be2 {[%emt 0:02:19]} O-O {[%emt 0:02:07]} 12. O-O {[%emt 0:00:54]} a6 {[%emt 0:02:39]} 13. Ng5 {[%emt 0:04:17]} Bf5 {[%emt 0:02:12]} 14. Bf3 {[%emt 0:07:06]} Nb4 {[%emt 0:11:49]} 15. Nge4 {[%emt 0:15:03]} Bd4 {[%emt 0:16:26]} 16. Qb3 {[%emt 0:17:20]} a5 {[%emt 0:30:05]} 17. Nb5 {[%emt 0:08:05]} Qb6 {[%emt 0:02:58]} 18. Nxd4 {[%emt 0:01:55]} Qxd4 {[%emt 0:00:37]} 19. Nxf6+ {[%emt 0:00:33]} Qxf6 {[%emt 0:00:26]} 20. d4 {[%emt 0:00:45]} Bd3 {[%emt 0:02:01]} 21. Rd1 {[%emt 0:01:45]} Bc2 {[%emt 0:00:54]} 22. Qc4 {[%emt 0:03:42]} Bxd1 {[%emt 0:00:34]} 23. Bxd1 {[%emt 0:01:12]} Nc6 {[%emt 0:01:38]} 24. Be3 {[%emt 0:01:31]} Rfd8 {[%emt 0:01:05]} 25. Rc1 {[%emt 0:07:16]} Nxd4 {[%emt 0:02:10]} 26. Qc5 {[%emt 0:02:34]} Nf5 {[%emt 0:01:34]} 27. Bf4 {[%emt 0:02:04]} Qxb2 {[%emt 0:02:11]} 28. h3 {[%emt 0:05:11]} Qf6 {[%emt 0:00:53]} 29. Bg4 {[%emt 0:01:37]} g6 {[%emt 0:00:52]} 30. Qc7 {[%emt 0:02:01]} Rac8 {[%emt 0:01:33]} 31. Qxa5 {[%emt 0:01:25]} Rxc1+ {[%emt 0:00:11]} 32. Bxc1 {[%emt 0:00:06]} Re8 {[%emt 0:00:37]} 33. Bd2 {[%emt 0:01:04]} Qa1+ {[%emt 0:00:15]} 34. Kh2 {[%emt 0:00:10]} Qe5+ {[%emt 0:00:12]} 35. Qxe5 {[%emt 0:00:22]} Rxe5 {[%emt 0:00:04]} 36. a4 {[%emt 0:00:57]} h5 {[%emt 0:00:38]} 37. Bf3 {[%emt 0:00:17]} b6 {[%emt 0:00:05]} 38. Bc3 {[%emt 0:01:08]} Rc5 {[%emt 0:00:20]} 39. Bd2 {[%emt 0:00:36]} Rc2 {[%emt 0:00:09]} 40. Be1 {[%emt 0:00:43]} Nd4 {[%emt 0:00:49]} 41. Be4 {[%emt 0:16:15]} Re2 {[%emt 0:15:42]} 42. Bc3 {[%emt 0:00:00]} Rxe4 {[%emt 0:00:00]} 43. f3 {[%emt 0:00:00]} Rf4 {[%emt 0:00:00]} 44. a5 {[%emt 0:00:00]} bxa5 {[%emt 0:00:00]} 45. Bxa5 {[%emt 0:00:00]} Ne2 {[%emt 0:00:00]} 46. Bd2 {[%emt 0:00:00]} Rd4 {[%emt 0:00:00]} 47. Be3 {[%emt 0:00:00]} Rd3 {[%emt 0:00:00]} 48. Bg5 {[%emt 0:00:00]} Kg7 {[%emt 0:00:00]} 49. Be7 {[%emt 0:00:00]} f6 {[%emt 0:00:00]} 50. Bc5 {[%emt 0:00:00]} h4 {[%emt 0:00:00]} 51. Bf2 {[%emt 0:00:00]} g5 {[%emt 0:00:00]} 52. Bc5 {[%emt 0:00:00]} Rd1 {[%emt 0:00:00]} 53. Bf2 {[%emt 0:00:00]} Rf1 {[%emt 0:00:00]} 54. Be3 {[%emt 0:00:00]} Ng3 {[%emt 0:00:00]} 55. Bg1 {[%emt 0:00:00]} Kg6 {[%emt 0:00:00]} 56. f4 {[%emt 0:00:00]} gxf4 {[%emt 0:00:00]} 57. Be3 {[%emt 0:00:00]} Rh1# {[%emt 0:00:19]} 0-1

[Event "GER-ch Youth-U12 2024"]
[Site "Willingen"]
[Date "2024.05.20"]
[Round "3"]
[White "Franke, Moritz"]
[Black "Tarasenko, Nazar"]
[Result "0-1"]
[ECO "B50"]
[WhiteElo "1597"]
[BlackElo "2061"]
[Annotator "NA RC"]
[PlyCount "121"]
[EventDate "2022.06.05"]
[EventType "swiss"]
[EventRounds "9"]
[EventCountry "GER"]
[SourceTitle "playchess.com"]
[Source "ChessBase"]
[SourceQuality "1"]
[TimeControl "40/4500+30:900+30"]

1. e4 {[%emt 0:00:00]} c5 {[%emt 0:00:00]} 2. Nf3 {[%emt 0:00:00]} d6 {[%emt 0:00:00]} 3. Nc3 {[%emt 0:00:00]} Nf6 {[%emt 0:00:00]} 4. e5 {[%emt 0:00:00]} dxe5 {[%emt 0:00:00]} 5. Nxe5 {[%emt 0:00:00]} e6 {[%emt 0:00:00]} 6. Bb5+ {[%emt 0:00:00]} Nbd7 {[%emt 0:00:00]} 7. Bxd7+ {[%emt 0:00:00]} Nxd7 {[%emt 0:00:00]} 8. d4 {[%emt 0:00:00]} cxd4 {[%emt 0:00:00]} 9. Qxd4 {[%emt 0:00:00]} Bc5 {[%emt 0:02:37]} 10. Qf4 {[%emt 0:00:00]} O-O {[%emt 0:00:25]} 11. Nxd7 {[%emt 0:00:00]} Bxd7 {[%emt 0:00:13]} 12. O-O {[%emt 0:00:00]} Qe7 {[%emt 0:02:29]} 13. Ne4 {[%emt 0:00:00]} e5 {[%emt 0:03:40]} 14. Qg3 {[%emt 0:00:59]} Bb6 {[%emt 0:01:07]} 15. Be3 {[%emt 0:02:54]} f5 {[%emt 0:01:59]} 16. Bxb6 {[%emt 0:01:12]} axb6 {[%emt 0:00:05]} 17. Nc3 {[%emt 0:01:42]} f4 {[%emt 0:00:22]} 18. Qf3 {[%emt 0:01:43]} Bc6 {[%emt 0:00:19]} 19. Ne4 {[%emt 0:01:29]} Qb4 {[%emt 0:00:27]} 20. Rfe1 {[%emt 0:00:55]} Rxa2 {[%emt 0:01:00]} 21. Qb3+ {[%emt 0:01:38]} Qxb3 {[%emt 0:00:41]} 22. cxb3 {[%emt 0:00:08]} Rxa1 {[%emt 0:00:02]} 23. Rxa1 {[%emt 0:00:19]} Bxe4 {[%emt 0:00:05]} 24. Re1 {[%emt 0:00:14]} Rd8 {[%emt 0:00:45]} 25. h3 {[%emt 0:00:03]} Bc2 {[%emt 0:00:25]} 26. Rxe5 {[%emt 0:00:12]} Bxb3 {[%emt 0:00:02]} 27. Rb5 {[%emt 0:00:09]} Bd5 {[%emt 0:00:10]} 28. Rxb6 {[%emt 0:00:16]} Bc6 {[%emt 0:00:05]} 29. Rb4 {[%emt 0:00:21]} Rd1+ {[%emt 0:00:09]} 30. Kh2 {[%emt 0:00:05]} Rd2 {[%emt 0:00:07]} 31. Rxf4 {[%emt 0:00:17]} Rxb2 {[%emt 0:00:06]} 32. Kg3 {[%emt 0:00:08]} Rb3+ {[%emt 0:00:07]} 33. f3 {[%emt 0:00:08]} Rc3 {[%emt 0:00:20]} 34. Rb4 {[%emt 0:00:09]} b5 {[%emt 0:00:04]} 35. Kf2 {[%emt 0:00:23]} Rc2+ {[%emt 0:00:12]} 36. Kf1 {[%emt 0:00:23]} Bd5 {[%emt 0:00:11]} 37. Ke1 {[%emt 0:00:29]} Bc4 {[%emt 0:00:04]} 38. g3 {[%emt 0:00:41]} Re2+ {[%emt 0:00:05]} 39. Kd1 {[%emt 0:00:10]} Rf2 {[%emt 0:00:05]} 40. Kc1 {[%emt 0:00:52]} Rxf3 {[%emt 0:00:05]} 41. Rb2 {[%emt 0:15:09]} Rf1+ {[%emt 0:15:09]} 42. Kc2 {[%emt 0:00:08]} Rf2+ {[%emt 0:00:05]} 43. Kc3 {[%emt 0:00:11]} Rxb2 {[%emt 0:00:06]} 44. Kxb2 {[%emt 0:00:05]} b4 {[%emt 0:00:07]} 45. Kc1 {[%emt 0:00:10]} b3 {[%emt 0:00:04]} 46. Kb2 {[%emt 0:00:09]} g5 {[%emt 0:00:06]} 47. h4 {[%emt 0:00:15]} g4 {[%emt 0:00:04]} 48. Kc3 {[%emt 0:00:07]} Kf7 {[%emt 0:00:05]} 49. Kb2 {[%emt 0:00:08]} Ke6 {[%emt 0:00:05]} 50. Kc3 {[%emt 0:00:05]} Ke5 {[%emt 0:00:04]} 51. Kb2 {[%emt 0:00:10]} Ke4 {[%emt 0:00:04]} 52. Kc3 {[%emt 0:00:06]} Kf3 {[%emt 0:00:04]} 53. Kb2 {[%emt 0:00:04]} Kxg3 {[%emt 0:00:07]} 54. Kc3 {[%emt 0:00:02]} Kh2 {[%emt 0:00:12]} 55. Kb2 {[%emt 0:00:11]} g3 {[%emt 0:00:05]} 56. Kc3 {[%emt 0:00:04]} g2 {[%emt 0:00:07]} 57. Kb2 {[%emt 0:00:13]} g1=Q {[%emt 0:00:13]} 58. Kc3 {[%emt 0:00:06]} Qc1+ {[%emt 0:00:10]} 59. Kd4 {[%emt 0:00:10]} b2 {[%emt 0:00:10]} 60. Ke5 {[%emt 0:00:01]} b1=R {[%emt 0:00:11]} 61. Kd4 {[%emt 0:00:18]} 0-1

[Event "GER-ch Youth-U12 2024"]
[Site "Willingen"]
[Date "2024.05.20"]
[Round "3"]
[White "Gao, Chenzhuo"]
[Black "Andersen, Jonathan"]
[Result "0-1"]
[ECO "D04"]
[WhiteElo "1580"]
[BlackElo "1693"]
[Annotator "NA"]
[PlyCount "76"]
[EventDate "2022.06.05"]
[EventType "swiss"]
[EventRounds "9"]
[EventCountry "GER"]
[SourceTitle "playchess.com"]
[Source "ChessBase"]
[SourceQuality "1"]
[TimeControl "40/4500+30:900+30"]

1. d4 {[%emt 0:00:00]} Nf6 {[%emt 0:00:00]} 2. Nf3 {[%emt 0:00:00]} g6 {[%emt 0:00:00]} 3. e3 {[%emt 0:00:00]} Bg7 {[%emt 0:00:00]} 4. Bd3 {[%emt 0:00:00]} d5 {[%emt 0:00:00]} 5. b4 {[%emt 0:00:00]} O-O {[%emt 0:00:00]} 6. O-O {[%emt 0:00:00]} a5 {[%emt 0:00:00]} 7. b5 {[%emt 0:00:00]} Ne4 {[%emt 0:00:00]} 8. c4 {[%emt 0:00:07]} Nc5 {[%emt 0:00:00]} 9. Be2 {[%emt 0:00:46]} dxc4 {[%emt 0:00:00]} 10. Bxc4 {[%emt 0:00:25]} b6 {[%emt 0:12:58]} 11. Bb2 {[%emt 0:02:29]} Bb7 {[%emt 0:01:09]} 12. Nbd2 {[%emt 0:00:41]} Ne4 {[%emt 0:02:31]} 13. Nxe4 {[%emt 0:11:37]} Bxe4 {[%emt 0:01:03]} 14. Nd2 {[%emt 0:00:51]} Bb7 {[%emt 0:00:08]} 15. a4 {[%emt 0:00:40]} c5 {[%emt 0:02:51]} 16. bxc6 {[%emt 0:02:18]} Nxc6 {[%emt 0:00:27]} 17. Qb3 {[%emt 0:01:19]} e5 {[%emt 0:04:35]} 18. d5 {[%emt 0:07:21]} Nb4 {[%emt 0:06:50]} 19. Ba3 {[%emt 0:01:46]} Rc8 {[%emt 0:03:50]} 20. Bxb4 {[%emt 0:04:28]} axb4 {[%emt 0:00:05]} 21. Rad1 {[%emt 0:01:31]} Qe7 {[%emt 0:03:46]} 22. Ne4 {[%emt 0:05:05]} Kh8 {[%emt 0:08:11]} 23. Rb1 {[%emt 0:12:37]} Rfd8 {[%emt 0:05:05]} 24. Nd2 {[%emt 0:08:08]} Bf8 {[%emt 0:01:30]} 25. Rfd1 {[%emt 0:01:28]} Qc5 {[%emt 0:01:23]} 26. Rbc1 {[%emt 0:01:15]} f5 {[%emt 0:06:08]} 27. h3 {[%emt 0:00:24]} e4 {[%emt 0:02:12]} 28. f3 {[%emt 0:06:03]} exf3 {[%emt 0:06:51]} 29. Nxf3 {[%emt 0:00:23]} Bh6 {[%emt 0:00:56]} 30. Kf2 {[%emt 0:04:07]} Re8 {[%emt 0:01:00]} 31. Rd3 {[%emt 0:01:18]} Bxd5 {[%emt 0:03:05]} 32. Rxd5 {[%emt 0:01:19]} Qxe3+ {[%emt 0:00:28]} 33. Qxe3 {[%emt 0:00:07]} Bxe3+ {[%emt 0:00:03]} 34. Kf1 {[%emt 0:00:10]} Bxc1 {[%emt 0:00:09]} 35. Bb5 {[%emt 0:00:25]} Red8 {[%emt 0:00:12]} 36. Re5 {[%emt 0:00:29]} b3 {[%emt 0:00:56]} 37. Be2 {[%emt 0:00:42]} Rc5 {[%emt 0:00:16]} 38. Re6 {[%emt 0:00:21]} b5 {[%emt 0:00:29]} 0-1

[Event "GER-ch Youth-U12 2024"]
[Site "Willingen"]
[Date "2024.05.20"]
[Round "3"]
[White "Levytskyi, Oleksandr"]
[Black "Obermair, Hannes"]
[Result "1/2-1/2"]
[ECO "B38"]
[WhiteElo "1467"]
[BlackElo "1668"]
[Annotator "NA"]
[PlyCount "104"]
[EventDate "2022.06.05"]
[EventType "swiss"]
[EventRounds "9"]
[EventCountry "GER"]
[SourceTitle "playchess.com"]
[Source "ChessBase"]
[SourceQuality "1"]
[TimeControl "40/4500+30:900+30"]

1. e4 {[%emt 0:00:00]} c5 {[%emt 0:03:19]} 2. c4 {[%emt 0:00:00]} Nc6 {[%emt 0:00:34]} 3. Ne2 {[%emt 0:00:00]} g6 {[%emt 0:00:15]} 4. d4 {[%emt 0:00:00]} cxd4 {[%emt 0:00:16]} 5. Nxd4 {[%emt 0:00:00]} Bg7 {[%emt 0:00:05]} 6. Be3 {[%emt 0:00:00]} e6 {[%emt 0:00:17]} 7. Nc3 {[%emt 0:00:00]} Nge7 {[%emt 0:00:18]} 8. Be2 {[%emt 0:00:00]} O-O {[%emt 0:00:25]} 9. O-O {[%emt 0:00:00]} b6 {[%emt 0:00:41]} 10. Nxc6 {[%emt 0:00:00]} dxc6 {[%emt 0:00:40]} 11. Rc1 {[%emt 0:00:00]} Bb7 {[%emt 0:01:01]} 12. c5 {[%emt 0:00:00]} b5 {[%emt 0:01:59]} 13. b4 {[%emt 0:00:00]} a5 {[%emt 0:08:40]} 14. a3 {[%emt 0:15:01]} axb4 {[%emt 0:02:26]} 15. axb4 {[%emt 0:00:07]} Qc7 {[%emt 0:02:46]} 16. Qb3 {[%emt 0:01:30]} Rfd8 {[%emt 0:03:07]} 17. Rfd1 {[%emt 0:13:56]} Rdc8 {[%emt 0:09:14]} 18. Bg4 {[%emt 0:02:02]} Rd8 {[%emt 0:02:47]} 19. Be2 {[%emt 0:04:12]} Rxd1+ {[%emt 0:02:06]} 20. Rxd1 {[%emt 0:00:06]} Rd8 {[%emt 0:00:53]} 21. Rxd8+ {[%emt 0:00:43]} Qxd8 {[%emt 0:00:11]} 22. Qd1 {[%emt 0:00:10]} Qxd1+ {[%emt 0:03:23]} 23. Nxd1 {[%emt 0:00:05]} Kf8 {[%emt 0:01:43]} 24. Kf1 {[%emt 0:00:23]} Ke8 {[%emt 0:01:42]} 25. Ke1 {[%emt 0:00:06]} e5 {[%emt 0:02:22]} 26. Kd2 {[%emt 0:02:29]} Bc8 {[%emt 0:00:57]} 27. Nc3 {[%emt 0:01:44]} Be6 {[%emt 0:01:22]} 28. h3 {[%emt 0:01:25]} Kd7 {[%emt 0:02:43]} 29. Kc2 {[%emt 0:02:56]} Kc7 {[%emt 0:00:35]} 30. Kb2 {[%emt 0:02:15]} Nc8 {[%emt 0:03:33]} 31. Bd1 {[%emt 0:00:54]} Na7 {[%emt 0:01:50]} 32. Bb3 {[%emt 0:03:05]} Bxb3 {[%emt 0:02:21]} 33. Kxb3 {[%emt 0:00:01]} Kd7 {[%emt 0:00:31]} 34. Ne2 {[%emt 0:00:11]} Nc8 {[%emt 0:02:44]} 35. g4 {[%emt 0:03:17]} Ne7 {[%emt 0:03:41]} 36. Ng3 {[%emt 0:00:12]} h6 {[%emt 0:01:29]} 37. Kc2 {[%emt 0:04:05]} Ng8 {[%emt 0:02:15]} 38. Kd3 {[%emt 0:00:45]} Ne7 {[%emt 0:00:39]} 39. Bd2 {[%emt 0:01:31]} g5 {[%emt 0:02:22]} 40. Nf5 {[%emt 0:00:40]} Nxf5 {[%emt 0:00:18]} 41. exf5 {[%emt 0:15:41]} f6 {[%emt 0:15:21]} 42. Ke3 {[%emt 0:00:29]} Ke7 {[%emt 0:00:22]} 43. f3 {[%emt 0:00:12]} Kd7 {[%emt 0:00:16]} 44. Kf2 {[%emt 0:00:05]} Ke7 {[%emt 0:00:36]} 45. Kg3 {[%emt 0:00:06]} Kf7 {[%emt 0:00:19]} 46. h4 {[%emt 0:00:21]} Bf8 {[%emt 0:00:41]} 47. hxg5 {[%emt 0:00:50]} hxg5 {[%emt 0:00:23]} 48. Kf2 {[%emt 0:00:24]} Be7 {[%emt 0:00:25]} 49. Ke3 {[%emt 0:00:07]} Bd8 {[%emt 0:00:27]} 50. Ke4 {[%emt 0:00:06]} Bc7 {[%emt 0:00:34]} 51. Bc3 {[%emt 0:00:23]} Ke7 {[%emt 0:00:22]} 52. Bd2 {[%emt 0:00:31]} Kf7 {[%emt 0:00:38]} 1/2-1/2